bitfinex-derivatives/quotes_BTCF0:USTF0_20241019
["timestamp","ask_amount","ask_price","bid_price","bid_amount"]
[1729347045354,0.00767207,68212.0,68211.0,0.27992306]
[1729347045561,0.07576642,68216.0,68212.0,0.065974]
[1729347045759,0.07580928,68219.0,68217.0,0.065969]
[1729347046065,0.07580928,68219.0,68217.0,0.16530375]
[1729347049565,0.07580928,68219.0,68217.0,0.52285435]
[1729347050057,0.07580928,68219.0,68217.0,0.52234659]
[1729347052056,0.07580928,68219.0,68217.0,0.28291777]
[1729347054972,0.07580928,68219.0,68217.0,0.28278461]
[1729347056565,0.07580928,68219.0,68217.0,0.16488296]
[1729347064776,0.07580928,68219.0,68218.0,0.065968]
[1729347064980,0.07580928,68219.0,68218.0,0.52212684]
[1729347066079,0.07580928,68219.0,68218.0,0.38520768]
[1729347066979,0.07580928,68219.0,68218.0,0.28280929]
[1729347070080,0.07580928,68219.0,68218.0,0.28162893]
[1729347072378,0.07580928,68219.0,68218.0,0.28166679]
[1729347072681,0.07580928,68219.0,68218.0,0.52027331]
[1729347073089,0.07580928,68219.0,68218.0,0.38406518]
[1729347073487,0.07580928,68219.0,68218.0,0.5202727]
[1729347073877,0.07580928,68219.0,68218.0,0.41787431]
[1729347074777,0.07580928,68219.0,68218.0,0.4437554]
[1729347074985,0.0327,68230.0,68218.0,0.3777874]
[1729347075180,0.0327,68230.0,68221.0,0.16843934]
[1729347075382,0.0327,68230.0,68221.0,0.77867131]
[1729347076486,0.098656,68230.0,68221.0,0.77867131]
[1729347077093,0.098656,68230.0,68221.0,0.64246379]
[1729347077488,0.098656,68230.0,68221.0,0.74494746]
[1729347077686,0.098656,68230.0,68221.0,0.64246379]
[1729347077879,0.098656,68230.0,68221.0,0.28166379]
[1729347078094,0.098656,68230.0,68221.0,0.64246379]
[1729347078594,0.098656,68230.0,68221.0,0.59836806]
[1729347079184,0.065957,68229.0,68221.0,0.59836806]
[1729347086714,0.065957,68229.0,68221.0,0.6423916]
[1729347087317,0.065957,68229.0,68221.0,0.2815916]
[1729347087614,0.065957,68229.0,68221.0,0.6423916]
[1729347088810,0.065957,68229.0,68221.0,0.2815916]
[1729347089005,0.065957,68229.0,68221.0,0.6423916]
[1729347090512,0.065957,68229.0,68221.0,0.2815916]
[1729347090713,0.065957,68229.0,68221.0,0.6423916]
[1729347091314,0.065957,68229.0,68221.0,0.28150164]
[1729347091824,0.065957,68229.0,68221.0,0.64230164]
[1729347093821,0.065957,68229.0,68221.0,0.426765]
[1729347095323,0.065957,68229.0,68221.0,0.065965]
[1729347096118,0.065957,68229.0,68221.0,0.426765]
[1729347099025,0.065957,68229.0,68221.0,0.065965]
[1729347099227,0.065957,68229.0,68221.0,0.426765]
[1729347099833,0.065957,68229.0,68221.0,0.065965]
[1729347100129,0.065957,68229.0,68221.0,0.426765]
[1729347101818,0.065957,68229.0,68221.0,0.88097928]
[1729347102120,0.065957,68229.0,68221.0,0.88097545]
[1729347102726,0.065957,68229.0,68221.0,0.77849561]
[1729347103231,0.065957,68229.0,68221.0,0.41769561]
[1729347103530,0.065957,68229.0,68221.0,0.77849561]
[1729347104023,0.065957,68229.0,68221.0,0.41769561]
[1729347104024,0.05596422,68222.0,68221.0,0.41769561]
[1729347104214,0.05596422,68222.0,68221.0,0.77849561]
[1729347104421,0.05596422,68222.0,68221.0,0.41769561]
[1729347104628,0.05596422,68222.0,68221.0,0.77849561]
[1729347105229,0.05596422,68222.0,68221.0,0.41769561]
[1729347105527,0.05596422,68222.0,68221.0,0.77849561]
[1729347105723,0.05596422,68222.0,68221.0,0.41769561]
[1729347106124,0.05596422,68222.0,68221.0,0.77849561]
[1729347107022,0.05596422,68222.0,68221.0,0.64237037]
[1729347107223,0.05596422,68222.0,68221.0,0.74488327]
[1729347107627,0.05596422,68222.0,68221.0,0.38408327]
[1729347107931,0.05596422,68222.0,68221.0,0.64237037]
[1729347108129,0.05596422,68222.0,68221.0,0.28157037]
[1729347108329,0.05596422,68222.0,68221.0,0.64237037]
[1729347108728,0.05596422,68222.0,68221.0,0.065965]
[1729347108932,0.05596422,68222.0,68221.0,0.426765]
[1729347112233,0.05596422,68222.0,68221.0,0.065965]
[1729347112933,0.05596422,68222.0,68221.0,0.426765]
[1729347114126,0.05596422,68222.0,68221.0,0.49997939]
[1729347116639,0.05596422,68222.0,68221.0,0.59812073]
[1729347116840,0.05596422,68222.0,68221.0,0.64187833]
[1729347118438,0.05596422,68222.0,68221.0,0.88019393]
[1729347121637,0.05596422,68222.0,68221.0,0.88017542]
[1729347123433,0.05596422,68222.0,68221.0,0.77768103]
[1729347123644,0.05596422,68222.0,68221.0,0.8801748]
[1729347123944,0.05596422,68222.0,68221.0,0.59811589]
[1729347124947,0.05596422,68222.0,68221.0,0.23731589]
[1729347125352,0.05596422,68222.0,68221.0,0.59811589]
[1729347128149,0.05596422,68222.0,68221.0,0.49997455]
[1729347131651,0.05596422,68222.0,68221.0,0.5981161]
[1729347132158,0.05596422,68222.0,68221.0,0.64188801]
[1729347132742,0.05596422,68222.0,68221.0,0.64188754]
[1729347135554,0.05596422,68222.0,68221.0,0.74438131]
[1729347135762,0.05596422,68222.0,68221.0,0.64188754]
[1729347135943,0.05596422,68222.0,68221.0,0.88019513]
[1729347136149,0.05596422,68222.0,68221.0,0.51939513]
[1729347136462,0.05596422,68222.0,68221.0,0.88019513]
[1729347136957,0.05596422,68222.0,68221.0,0.51939513]
[1729347137155,0.05596422,68222.0,68221.0,0.88019513]
[1729347137545,0.05596422,68222.0,68221.0,0.78205357]
[1729347137853,0.05596422,68222.0,68221.0,0.88018748]
[1729347138052,0.05596422,68222.0,68221.0,0.74437259]
[1729347138556,0.05596422,68222.0,68221.0,0.64187882]
[1729347138960,0.05596422,68222.0,68221.0,0.28107882]
[1729347139258,0.05596422,68222.0,68221.0,0.64187882]
[1729347139458,0.05596422,68222.0,68221.0,0.74437259]
[1729347140662,0.05596422,68222.0,68221.0,0.64187882]
[1729347142461,0.05596422,68222.0,68221.0,0.64193917]
[1729347142963,0.05596422,68222.0,68221.0,0.28113917]
[1729347143453,0.05596422,68222.0,68221.0,0.64193917]
[1729347143856,0.05596422,68222.0,68221.0,0.28113917]
[1729347144062,0.05596422,68222.0,68221.0,0.64193917]
[1729347145857,0.05596422,68222.0,68221.0,0.28113917]
[1729347146061,0.05596422,68222.0,68221.0,0.64193917]
[1729347146965,0.05596422,68222.0,68221.0,0.59812731]
[1729347147264,0.05596422,68222.0,68221.0,0.23732731]
[1729347147660,0.05596422,68222.0,68221.0,0.52493011]
[1729347148253,0.05596422,68222.0,68221.0,0.16413011]
[1729347148455,0.05596422,68222.0,68221.0,0.52493011]
[1729347152970,0.05596422,68222.0,68221.0,0.16413011]
[1729347153270,0.05596422,68222.0,68221.0,0.52493011]
[1729347154068,0.01196935,68222.0,68221.0,0.77781173]
[1729347155163,0.01196935,68222.0,68221.0,0.41701173]
[1729347155470,0.01196935,68222.0,68221.0,0.28114822]
[1729347155670,0.01196935,68222.0,68221.0,0.64194822]
[1729347156772,0.01196935,68222.0,68221.0,0.64126113]
[1729347159566,0.01196935,68222.0,68221.0,1.00206113]
[1729347160071,0.01196935,68222.0,68221.0,1.13723484]
[1729347160466,0.01196935,68222.0,68221.0,1.23968757]
[1729347160658,0.01196935,68222.0,68221.0,1.00206113]
[1729347161273,0.01196935,68222.0,68221.0,0.28046113]
[1729347161466,0.01196935,68222.0,68221.0,1.00206113]
[1729347162568,0.01196935,68222.0,68221.0,0.28046113]
[1729347162969,0.01196935,68222.0,68221.0,1.00206113]
[1729347163469,0.01196935,68222.0,68221.0,0.28046113]
[1729347163978,0.01196935,68222.0,68221.0,1.00206113]
[1729347164176,0.01196935,68222.0,68221.0,0.28046113]
[1729347164364,0.01196935,68222.0,68221.0,1.00206113]
[1729347164874,0.01196935,68222.0,68221.0,1.10451386]
[1729347165374,0.01196935,68222.0,68221.0,0.41563121]
[1729347165764,0.01196935,68222.0,68221.0,1.13723121]
[1729347166071,0.01196935,68222.0,68221.0,0.41563121]
[1729347166271,0.01196935,68222.0,68221.0,1.13723121]
[1729347167369,0.01196935,68222.0,68221.0,0.41563121]
[1729347167565,0.01196935,68222.0,68221.0,0.64126113]
[1729347168073,0.01196935,68222.0,68221.0,0.8790667]
[1729347168465,0.01196935,68222.0,68221.0,0.5182667]
[1729347168666,0.01196935,68222.0,68221.0,0.8790667]
[1729347169165,0.01196935,68222.0,68221.0,0.59780108]
[1729347169970,0.01196935,68222.0,68221.0,0.3608]
[1729347170173,0.01196935,68222.0,68221.0,0.41935478]
[1729347170174,0.07793335,68222.0,68221.0,0.41935478]
[1729347170375,0.07793335,68222.0,68221.0,0.3608]
[1729347170966,0.07793335,68222.0,68221.0,0.40471057]
[1729347171174,0.07793335,68222.0,68221.0,0.3608]
[1729347171474,0.07793335,68222.0,68221.0,0.40471064]
[1729347173567,0.07793335,68222.0,68221.0,0.3608]
[1729347175481,0.01196935,68222.0,68221.0,0.3608]
[1729347176178,0.01196935,68222.0,68221.0,0.54670952]
[1729347176372,0.01196935,68222.0,68221.0,0.45889316]
[1729347177883,0.01196935,68222.0,68221.0,0.45889316]
[1729347184188,0.01196935,68222.0,68221.0,0.3608]
[1729347184484,0.01196935,68222.0,68221.0,0.426765]
[1729347184699,0.01196935,68222.0,68221.0,0.47063146]
[1729347185285,0.01196935,68222.0,68221.0,0.426765]
[1729347185487,0.01196935,68222.0,68221.0,0.47062741]
[1729347185876,0.01196935,68222.0,68221.0,0.426765]
[1729347186490,0.01196935,68222.0,68221.0,0.47062762]
[1729347187490,0.01196935,68222.0,68221.0,0.47062793]
[1729347188475,0.01196935,68222.0,68221.0,0.426765]
[1729347189088,0.01196935,68222.0,68221.0,0.47062972]
[1729347189784,0.01196935,68222.0,68221.0,0.47063314]
[1729347190585,0.01196935,68222.0,68221.0,0.426765]
[1729347191184,0.01196935,68222.0,68221.0,0.52467356]
[1729347192593,0.01196935,68222.0,68221.0,0.61242117]
[1729347193488,0.01196935,68222.0,68221.0,0.61246786]
[1729347196795,0.01196935,68222.0,68221.0,0.52472025]
[1729347198599,0.01196935,68222.0,68221.0,0.64153635]
[1729347199188,0.01196935,68222.0,68221.0,0.48530846]
[1729347199707,0.01196935,68222.0,68221.0,0.426765]
[1729347203497,0.01196935,68222.0,68221.0,0.787565]
[1729347207303,0.01196935,68222.0,68221.0,1.00211709]
[1729347207795,0.01196935,68222.0,68221.0,1.00211837]
[1729347214194,0.01196935,68222.0,68221.0,0.787565]
[1729347222304,0.01196935,68222.0,68221.0,1.00222896]
[1729347231808,0.01196935,68222.0,68221.0,1.00283225]
[1729347237518,0.01196935,68222.0,68221.0,0.787565]
[1729347239511,0.01196935,68222.0,68221.0,0.86080949]
[1729347239916,0.01196935,68222.0,68221.0,0.787565]
[1729347240516,0.01196935,68222.0,68221.0,0.86080949]
[1729347240706,0.01196935,68222.0,68221.0,0.787565]
[1729347241016,0.01196935,68222.0,68221.0,0.86080949]
[1729347241516,0.01196935,68222.0,68221.0,0.787565]
[1729347241716,0.01196935,68222.0,68221.0,0.86080949]
[1729347243720,0.01196935,68222.0,68221.0,0.787565]
[1729347244315,0.01196935,68222.0,68221.0,1.00257821]
[1729347245024,0.065953,68233.0,68226.0,0.06596]
[1729347245226,0.065953,68233.0,68231.0,0.0002]
[1729347245424,0.065953,68233.0,68232.0,0.09809168]
[1729347249308,0.065953,68233.0,68232.0,0.16404568]
[1729347249613,0.065953,68233.0,68232.0,0.16391502]
[1729347250722,0.065953,68233.0,68232.0,0.16390605]
[1729347251716,0.065953,68233.0,68232.0,0.16390435]
[1729347252322,0.065953,68233.0,68232.0,0.23712583]
[1729347252718,0.065953,68233.0,68232.0,0.13917548]
[1729347253426,0.065953,68233.0,68232.0,0.065954]
[1729347254218,0.065953,68233.0,68232.0,0.09171958]
[1729347267534,0.065953,68233.0,68232.0,0.18975488]
[1729347274531,0.065953,68233.0,68232.0,0.09171958]
[1729347282547,0.065953,68233.0,68232.0,0.16497376]
[1729347286355,0.065953,68233.0,68232.0,0.18980896]
[1729347286753,0.065953,68233.0,68232.0,0.27770176]
[1729347289246,0.065953,68233.0,68232.0,0.18980896]
[1729347289448,0.065953,68233.0,68232.0,0.09171958]
[1729347297564,0.065953,68233.0,68232.0,0.18991668]
[1729347297767,0.065953,68233.0,68232.0,0.18990226]
[1729347301368,0.065953,68233.0,68232.0,0.18987753]
[1729347304265,0.065953,68233.0,68232.0,0.12392353]
[1729347304565,0.065953,68233.0,68232.0,0.02576558]
[1729347304777,0.065954,68232.0,68231.0,0.0002]
[1729347306264,0.065954,68232.0,68231.0,0.02716994]
[1729347307270,0.065954,68232.0,68231.0,0.09312494]
[1729347312571,0.065954,68232.0,68231.0,0.19132281]
[1729347317084,0.065954,68232.0,68231.0,0.2645613]
[1729347318278,0.065954,68232.0,68231.0,0.19132281]
[1729347318479,0.065954,68232.0,68231.0,0.26456572]
[1729347318675,0.065954,68232.0,68231.0,0.19132281]
[1729347323284,0.065954,68232.0,68231.0,0.26457134]
[1729347323781,0.065954,68232.0,68231.0,0.19132281]
[1729347325177,0.065954,68232.0,68231.0,0.19133521]
[1729347327681,0.065954,68232.0,68231.0,0.09312494]
[1729347328284,0.065954,68232.0,68231.0,0.02716994]
[1729347334689,0.065954,68232.0,68231.0,0.12533784]
[1729347344299,0.065954,68232.0,68231.0,0.12530151]
[1729347349690,0.065954,68232.0,68231.0,0.02716994]
[1729347357704,0.065954,68232.0,68231.0,0.12527748]
[1729347364610,0.065954,68232.0,68231.0,0.02716994]
[1729347366111,0.065954,68232.0,68231.0,0.02696994]
[1729347366311,0.065954,68232.0,68229.0,0.1098974]
[1729347368601,0.3927,68239.0,68229.0,0.1098974]
[1729347368602,0.065955,68231.0,68229.0,0.1098974]
[1729347369421,0.065955,68231.0,68229.0,0.13619975]
[1729347371718,0.065955,68231.0,68230.0,0.09811327]
[1729347373810,0.065955,68231.0,68230.0,0.18599459]
[1729347376622,0.065955,68231.0,68230.0,0.18601287]
[1729347378427,0.065955,68231.0,68230.0,0.09813155]
[1729347379931,0.065955,68231.0,68229.0,0.13619889]
[1729347380824,0.065955,68231.0,68230.0,0.04393954]
[1729347382117,0.3929,68239.0,68229.0,0.07024189]
[1729347382317,0.28258563,68230.0,68229.0,0.07024189]
[1729347384224,0.28258563,68230.0,68229.0,0.02630235]
[1729347384428,0.28258563,68230.0,68227.0,0.426759]
[1729347384429,0.065956,68230.0,68227.0,0.426759]
[1729347385725,0.065956,68230.0,68227.0,0.45330688]
[1729347385926,0.0002,68237.0,68227.0,0.45330688]
[1729347385927,0.065957,68229.0,68227.0,0.45330688]
[1729347386231,0.065958,68228.0,68227.0,0.02654788]
[1729347386528,0.065961,68225.0,68222.0,0.05858605]
[1729347386729,0.065962,68224.0,68223.0,0.0984028]
[1729347390830,0.065962,68224.0,68223.0,0.09845676]
[1729347394331,0.065962,68224.0,68223.0,0.18633808]
[1729347394638,0.065962,68224.0,68223.0,0.16441976]
[1729347394840,0.065962,68224.0,68223.0,0.065963]
[1729347395437,0.065958,68228.0,68224.0,0.065962]
[1729347395732,0.065958,68228.0,68224.0,0.12450907]
[1729347396133,0.065958,68228.0,68227.0,0.0002]
[1729347396334,0.065958,68228.0,68227.0,0.04410925]
[1729347400435,0.065958,68228.0,68227.0,0.0002]
[1729347401139,0.065958,68228.0,68227.0,0.04410774]
[1729347401339,0.065958,68228.0,68227.0,0.07017015]
[1729347402432,0.065958,68228.0,68227.0,0.02626241]
[1729347402741,0.065958,68228.0,68227.0,0.12466532]
[1729347403737,0.3608,68231.0,68228.0,0.065957]
[1729347403930,0.065956,68230.0,68229.0,0.09840291]
[1729347405345,0.065956,68230.0,68229.0,0.09840201]
[1729347417763,0.0002,68232.0,68228.0,0.065957]
[1729347417948,0.065957,68229.0,68228.0,0.065957]
[1729347421754,0.0002,68232.0,68227.0,0.02626241]
[1729347421951,0.065958,68228.0,68227.0,0.02626241]
[1729347424865,0.065958,68228.0,68227.0,0.12479707]
[1729347433052,0.065958,68228.0,68227.0,0.02626241]
[1729347439459,0.065958,68228.0,68227.0,0.07020049]
[1729347439964,0.065958,68228.0,68227.0,0.02626241]
[1729347440264,0.065958,68228.0,68227.0,0.24219957]
[1729347443353,0.065958,68228.0,68227.0,0.12477561]
[1729347447165,0.065958,68228.0,68227.0,0.02626241]
[1729347455074,0.065958,68228.0,68227.0,0.12482458]
[1729347456172,0.065958,68228.0,68227.0,0.02626241]
[1729347456376,0.065958,68228.0,68227.0,0.12482774]
[1729347461476,0.065958,68228.0,68227.0,0.21270078]
[1729347464172,0.065958,68228.0,68227.0,0.12482774]
[1729347464362,0.065958,68228.0,68227.0,0.21269804]
[1729347466977,0.065958,68228.0,68227.0,0.12482774]
[1729347467278,0.065958,68228.0,68227.0,0.2126945]
[1729347469078,0.065958,68228.0,68227.0,0.12482774]
[1729347469677,0.065958,68228.0,68227.0,0.2126945]
[1729347470178,0.065958,68228.0,68227.0,0.07019529]
[1729347471777,0.361,68232.0,68227.0,0.07019529]
[1729347471971,0.426955,68232.0,68228.0,0.065957]
[1729347472174,0.426955,68232.0,68231.0,0.0002]
[1729347474390,0.45982488,68232.0,68231.0,0.0002]
[1729347475282,0.426955,68232.0,68231.0,0.0002]
[1729347483685,0.426955,68232.0,68231.0,0.07342147]
[1729347484293,0.066155,68232.0,68231.0,0.07342147]
[1729347484493,0.066155,68232.0,68231.0,0.0002]
[1729347495395,0.066155,68232.0,68231.0,0.09860964]
[1729347497196,0.066155,68232.0,68231.0,0.17183628]
[1729347497994,0.066155,68232.0,68231.0,0.09866636]
[1729347498797,0.066155,68232.0,68231.0,0.17182532]
[1729347499199,0.066155,68232.0,68231.0,0.07336887]
[1729347499391,0.066155,68232.0,68231.0,0.0002]
[1729347506793,0.065955,68232.0,68231.0,0.0002]
[1729347507494,0.065955,68232.0,68231.0,0.066155]
[1729347514408,0.065955,68232.0,68231.0,0.0002]
[1729347515302,0.065955,68232.0,68231.0,0.17183246]
[1729347520004,0.065955,68232.0,68231.0,0.09866359]
[1729347522297,0.065955,68232.0,68231.0,0.0002]
[1729347522509,0.065955,68232.0,68231.0,0.066155]
[1729347530407,0.065955,68232.0,68231.0,0.16458651]
[1729347536322,0.065955,68232.0,68231.0,0.066155]
[1729347536518,0.065955,68232.0,68231.0,0.16459962]
[1729347537429,0.065955,68232.0,68231.0,0.066155]
[1729347545417,0.065955,68232.0,68231.0,0.1645868]
[1729347551423,0.065955,68232.0,68231.0,0.16455636]
[1729347554134,0.065955,68232.0,68231.0,0.164574]
[1729347556936,0.065955,68232.0,68231.0,0.098619]
[1729347560421,0.065955,68232.0,68231.0,0.04412032]
[1729347560825,0.065955,68232.0,68231.0,0.0002]
[1729347566540,0.065952,68234.0,68233.0,0.065953]
[1729347566841,0.065952,68234.0,68233.0,0.48550668]
[1729347567443,0.065952,68234.0,68233.0,0.5251549]
[1729347568543,0.065952,68234.0,68233.0,0.52514803]
[1729347571139,0.065952,68234.0,68233.0,0.59830592]
[1729347571743,0.065952,68234.0,68233.0,0.52514803]
[1729347575166,0.065952,68234.0,68233.0,0.45919503]
[1729347575569,0.065952,68234.0,68233.0,0.40488577]
[1729347578267,0.065952,68234.0,68233.0,0.361]
[1729347581967,0.065952,68234.0,68233.0,0.40488577]
[1729347582578,0.065952,68234.0,68233.0,0.54707104]
[1729347582875,0.065952,68234.0,68233.0,0.45920428]
[1729347587383,0.065952,68234.0,68233.0,0.45926002]
[1729347597590,0.065952,68234.0,68233.0,0.40491933]
[1729347597787,0.065952,68234.0,68233.0,0.0002]
[1729347605484,0.065952,68234.0,68233.0,0.09850752]
[1729347606588,0.065952,68234.0,68233.0,0.18629515]
[1729347608591,0.065952,68234.0,68233.0,0.09850752]
[1729347609683,0.065952,68234.0,68233.0,0.1862952]
[1729347610484,0.065952,68234.0,68233.0,0.09850752]
[1729347611695,0.065952,68234.0,68233.0,0.09851988]
[1729347612695,0.065952,68234.0,68233.0,0.05872888]
[1729347613492,0.065952,68234.0,68233.0,0.12467588]
[1729347613685,0.065952,68234.0,68233.0,0.066147]
[1729347619699,0.065952,68234.0,68233.0,0.16446922]
[1729347620499,0.065952,68234.0,68233.0,0.25226462]
[1729347620900,0.065952,68234.0,68233.0,0.16446922]
[1729347622201,0.065952,68234.0,68233.0,0.25226341]
[1729347622597,0.065952,68234.0,68233.0,0.25226274]
[1729347622992,0.065952,68234.0,68233.0,0.16446922]
[1729347623189,0.065952,68234.0,68233.0,0.25226273]
[1729347624197,0.065952,68234.0,68233.0,0.25226561]
[1729347627303,0.065952,68234.0,68233.0,0.1644721]
[1729347627808,0.065952,68234.0,68233.0,0.066147]
[1729347634699,0.065952,68234.0,68233.0,0.64220911]
[1729347642719,0.065952,68234.0,68233.0,0.61293486]
[1729347643316,0.065952,68234.0,68233.0,0.61292731]
[1729347648015,0.065952,68234.0,68233.0,0.61292376]
[1729347648814,0.065952,68234.0,68233.0,0.54697676]
[1729347649918,0.065952,68234.0,68233.0,0.361]
[1729347651212,0.065952,68234.0,68233.0,0.41952195]
[1729347657822,0.065952,68234.0,68233.0,0.57631192]
[1729347664931,0.065952,68234.0,68233.0,0.361]
[1729347668927,0.426752,68234.0,68233.0,0.0002]
[1729347669319,0.426752,68234.0,68233.0,0.04410365]
[1729347669320,1.026752,68234.0,68233.0,0.04410365]
[1729347669630,1.026752,68234.0,68233.0,0.04410542]
[1729347670024,1.026752,68234.0,68233.0,0.0002]
[1729347671338,0.065951,68229.0,68228.0,0.0438853]
[1729347671522,0.08848,68229.0,68227.0,0.02606241]
[1729347671724,0.08848,68229.0,68222.0,0.06354586]
[1729347671725,0.0313,68228.0,68222.0,0.06354586]
[1729347672033,0.065956,68223.0,68222.0,0.005]
[1729347672434,1.105676,68223.0,68222.0,0.005]
[1729347673033,1.105676,68223.0,68222.0,0.10329276]
[1729347673223,1.105676,68223.0,68222.0,0.07810669]
[1729347673423,0.065961,68218.0,68217.0,0.08782496]
[1729347673639,0.37114479,68218.0,68217.0,0.08782496]
[1729347673934,0.30518379,68218.0,68216.0,0.08782496]
[1729347674138,0.065962,68217.0,68216.0,0.08782496]
[1729347674320,0.065963,68216.0,68215.0,0.08782496]
[1729347675333,0.065963,68216.0,68214.0,0.1796883]
[1729347675642,0.065964,68215.0,68214.0,0.5404883]
[1729347676131,0.065964,68215.0,68214.0,0.45266334]
[1729347676334,0.065964,68215.0,68214.0,0.54031453]
[1729347676629,0.065964,68215.0,68214.0,0.17951453]
[1729347676823,0.065964,68215.0,68214.0,0.54031453]
[1729347677428,0.065964,68215.0,68214.0,0.45266334]
[1729347681826,0.065964,68215.0,68214.0,0.09186334]
[1729347682025,0.065964,68215.0,68214.0,0.45266334]
[1729347688037,0.065964,68215.0,68214.0,0.54031453]
[1729347688430,0.065964,68215.0,68214.0,0.63716192]
[1729347688626,0.065964,68215.0,68214.0,0.27636192]
[1729347688842,0.065964,68215.0,68214.0,0.63716192]
[1729347691036,0.065964,68215.0,68214.0,0.27636192]
[1729347691249,0.065964,68215.0,68214.0,0.54951073]
[1729347692931,0.065964,68215.0,68214.0,0.63712357]
[1729347693346,0.065964,68215.0,68214.0,0.54951073]
[1729347694135,0.065964,68215.0,68214.0,0.54956353]
[1729347695140,0.065964,68215.0,68214.0,0.09186334]
[1729347695447,0.065964,68215.0,68214.0,0.45266334]
[1729347696136,0.065964,68215.0,68214.0,0.09186334]
[1729347696331,0.065964,68215.0,68214.0,0.54963576]
[1729347698051,0.065964,68215.0,68214.0,0.48367076]
[1729347698757,0.065964,68215.0,68214.0,0.12287076]
[1729347699047,0.065964,68215.0,68214.0,0.48367076]
[1729347699240,0.065964,68215.0,68214.0,0.54963576]
[1729347699638,0.065964,68215.0,68214.0,0.18883576]
[1729347699845,0.065964,68215.0,68214.0,0.54963576]
[1729347700546,0.065964,68215.0,68214.0,0.63727862]
[1729347701044,0.065964,68215.0,68214.0,0.27647862]
[1729347701251,0.065964,68215.0,68214.0,0.54963576]
[1729347703244,0.065964,68215.0,68214.0,0.66547157]
[1729347707345,0.154444,68215.0,68214.0,0.66547157]
[1729347708548,0.154444,68215.0,68214.0,0.6656227]
[1729347710048,0.154444,68215.0,68214.0,0.3048227]
[1729347710251,0.154444,68215.0,68214.0,0.80007288]
[1729347712161,0.08848,68215.0,68214.0,0.80007288]
[1729347712749,0.0002,68224.0,68214.0,0.5996577]
[1729347712750,0.065957,68223.0,68214.0,0.5996577]
[1729347712959,0.0002,68224.0,68221.0,0.426758]
[1729347712960,0.08848,68222.0,68221.0,0.426758]
[1729347713146,0.022524,68223.0,68221.0,0.60705936]
[1729347713347,0.022524,68223.0,68222.0,0.27840577]
[1729347714957,0.08848,68223.0,68222.0,0.27840577]
[1729347715748,0.154436,68223.0,68222.0,0.27840577]
[1729347715951,0.154436,68223.0,68222.0,0.21244877]
[1729347717959,0.154436,68223.0,68222.0,0.23808356]
[1729347718160,0.154436,68223.0,68222.0,0.21230839]
[1729347718358,0.154436,68223.0,68222.0,0.05852839]
[1729347718953,0.065956,68223.0,68222.0,0.05852839]
[1729347722565,0.065957,68222.0,68221.0,0.11872036]
[1729347724859,0.065957,68222.0,68221.0,0.06019197]
[1729347725166,0.065957,68222.0,68221.0,0.02689197]
[1729347725358,0.065957,68222.0,68221.0,0.09695916]
[1729347725951,0.065956,68223.0,68221.0,0.09697908]
[1729347726162,0.065956,68223.0,68220.0,0.3612]
[1729347726163,0.065956,68223.0,68222.0,0.09697908]
[1729347726750,1.105676,68223.0,68222.0,0.07317243]
[1729347726965,0.065957,68222.0,68221.0,0.07317243]
[1729347727159,0.065958,68221.0,68220.0,0.07377243]
[1729347727355,0.065958,68221.0,68220.0,0.17091456]
[1729347728373,0.065972,68207.0,68206.0,0.3608]
[1729347728566,0.154452,68207.0,68206.0,0.3608]
[1729347731673,0.154452,68207.0,68206.0,0.38766956]
[1729347736457,0.154452,68207.0,68206.0,0.02686956]
[1729347736771,0.065979,68200.0,68199.0,0.3608]
[1729347737869,0.065979,68200.0,68199.0,0.38745115]
[1729347738467,0.154459,68200.0,68199.0,0.38745115]
[1729347739567,0.154459,68200.0,68199.0,0.02665115]
[1729347739778,0.08848,68200.0,68198.0,0.3608]
[1729347739968,0.06598,68199.0,68198.0,0.3608]
[1729347748481,0.06598,68199.0,68198.0,0.45693496]
[1729347749682,0.06598,68199.0,68198.0,0.54459956]
[1729347751184,0.06598,68199.0,68198.0,0.45693496]
[1729347751576,0.06598,68199.0,68198.0,0.54459956]
[1729347752585,0.06598,68199.0,68198.0,0.45693496]
[1729347754577,0.06598,68199.0,68198.0,0.45700994]
[1729347755388,0.06598,68199.0,68198.0,0.3608]
[1729347755584,0.06598,68199.0,68198.0,0.45706962]
[1729347759501,0.06598,68199.0,68198.0,0.45713088]
[1729347762602,0.06598,68199.0,68198.0,0.57197953]
[1729347768499,0.15482,68199.0,68198.0,0.57197953]
[1729347768730,0.15482,68199.0,68198.0,0.60407953]
[1729347769106,0.15482,68199.0,68198.0,0.60415887]
[1729347770507,0.15482,68199.0,68198.0,0.48927891]
[1729347773705,0.15482,68199.0,68198.0,0.3929]
[1729347773906,0.15482,68199.0,68198.0,0.48914652]
[1729347776008,0.06598,68199.0,68198.0,0.48914652]
[1729347776312,0.15482,68199.0,68198.0,0.48914652]
[1729347777506,0.15482,68199.0,68198.0,0.60395945]
[1729347778606,0.15482,68199.0,68198.0,0.3929]
[1729347778813,0.15482,68199.0,68198.0,0.60394192]
[1729347782517,0.15482,68199.0,68198.0,0.60413162]
[1729347785522,0.15482,68199.0,68198.0,0.56250922]
[1729347785815,0.15482,68199.0,68198.0,0.48926647]
[1729347787411,0.15482,68199.0,68198.0,0.56249662]
[1729347787823,0.15482,68199.0,68198.0,0.48926647]
[1729347788021,0.15482,68199.0,68198.0,0.56249631]
[1729347788609,0.15482,68199.0,68198.0,0.48926647]
[1729347789117,0.15486,68199.0,68198.0,0.56249714]
[1729347789415,0.15486,68199.0,68198.0,0.48926647]
[1729347789616,0.06598,68199.0,68198.0,0.56249651]
[1729347789822,0.08888,68199.0,68198.0,0.55524647]
[1729347792026,0.08888,68199.0,68198.0,0.5551611]
[1729347792533,0.08888,68199.0,68198.0,0.66992378]
[1729347793326,0.065979,68200.0,68198.0,0.66992378]
[1729347793518,0.065979,68200.0,68199.0,0.21104378]
[1729347794719,0.065979,68200.0,68198.0,0.46]
[1729347795026,0.065979,68200.0,68199.0,0.21104023]
[1729347796931,0.065979,68200.0,68199.0,0.21105212]
[1729347801738,0.065979,68200.0,68199.0,0.21106215]
[1729347807441,0.065979,68200.0,68199.0,0.09628916]
[1729347814742,0.065979,68200.0,68199.0,0.45708916]
[1729347815436,0.065979,68200.0,68199.0,0.57190105]
[1729347818159,0.065979,68200.0,68199.0,0.67445174]
[1729347818658,0.065979,68200.0,68199.0,0.80778866]
[1729347818837,0.065979,68200.0,68199.0,0.67445174]
[1729347819355,0.065979,68200.0,68199.0,0.80780605]